{"text_format":"1","workbook":"xlsx","n_sheets":10,"sheets":["6-1 小児科","6-2 インフル,コロナ","6-2(2)基幹（インフル入院）","6-2(3)基幹（コロナ入院）","6-3 眼科","6-4 STD","6-5 基幹(週)","6-6 基幹(月)","設定","使用説明"],"not_rendered":{"charts":0,"images":0,"macros":1,"external_links":0,"defined_names":8,"comments":0,"pivot_tables":0},"unopened":[],"bounds":{"document_bytes":16777216,"sheet_cells":100000,"rows_first":2000,"rows_last":500,"rows_between":2000,"halvings":0,"cell_chars":16384,"cell_head_chars":4096},"cells_cut":0,"cells_raw":0,"read":"whole","date_system":"1900"}

{"sheet":"6-1 小児科","index":0,"n_rows":28,"n_cols":36,"rows_kept":28,"cut":false,"hidden":false,"merged":[[25,1,26,1],[9,1,10,1],[15,1,16,1],[17,1,18,1],[19,1,20,1],[21,1,22,1],[23,1,24,1]]}
[null,"別記様式６-１","感染症発生動向調査（小児科定点）　週報",null,null,null,null,null,null,null,null,null,null,null,null,null,null,null,{"$f":"設定!C3&\" \"&設定!E3","v":"出雲保健所 衛生指導課（ＦＡＸ ２１－７４２８）行き"},null,null,null,null,null,null,null,"週の設定"]
[]
[]
[null,"調 査 期 間",{"$f":"\" \"&DBCS(TEXT(AD9,\"gggge年 \"))&DBCS(TEXT(AD9,\"m月d日\")& \" ～ \"&TEXT(AF9,\"m月d日\"))","v":" 平成３０年　１月１日　～　１月７日"},null,null,null,null,null,null,2018,"年　 第",1," 週"]
[null,"医療機関名",{"$f":"\" \"&設定!D14","v":" 医療法人社団どれみクリニック基常小児科"}]
[]
[null,"疾患名","年齢","～5か月","～11か月","１歳","２","３","４","５","６","７","８","９","10～14","15～19","20歳以上","合計",null,null,null,null,null,null,null,null,"本年",{"$f":"J4","v":2018},"年",{"$f":"DATEVALUE(AB7&\"/1/1\")","v":43101},"年",{"$f":"WEEKDAY(AD7,2)","v":1},{"$f":"IF(AF7<5,AF7,AF7-7)","v":1},{"$f":"AD7-AG7","v":"2017-12-31"},"←前年の最終週の日曜日"]
[1,"ＲＳウイルス","男",null,null,null,null,null,null,null,null,null,null,null,null,null,null,null,"ＲＳ"]
[null,"感染症","女",null,null,null,null,null,null,null,null,null,null,null,null,null,null,null,"ウイルス",null,null,null,null,null,null,null,"週",{"$f":"L4","v":1},"週",{"$f":"AH7+((AB9-1)*7)+1","v":"2018-01-01"},"～",{"$f":"AD9+6","v":"2018-01-07"},null,"最終週",{"$f":"INT((AH12-AH7)/7)","v":52},"週まで"]
[2,"咽頭結膜熱","男",null,null,null,null,null,null,null,null,null,null,null,null,null,null,null,"咽頭"]
[null,null,"女",null,null,null,null,null,null,null,null,null,null,null,null,null,null,null,"結膜熱"]
[3,"Ａ群溶血性レンサ","男",null,null,null,null,null,null,null,null,null,null,null,null,null,null,null,"A溶連菌",null,null,null,null,null,null,null,"翌年",{"$f":"AB7+1","v":2019},"年",{"$f":"DATEVALUE(AB12&\"/1/1\")","v":43466},"年",{"$f":"WEEKDAY(AD12,2)","v":2},{"$f":"IF(AF12<5,AF12,AF12-7)","v":2},{"$f":"AD12-AG12","v":"2018-12-30"},"←本年の最終週の日曜日"]
[null,"球菌咽頭炎","女",null,null,null,null,null,null,null,null,null,null,null,null,null,null,null,"感染症"]
[4,"  *","男",null,null,null,null,null,null,null,null,null,null,null,null,null,null,null,"感染性"]
[null,"感染性胃腸炎","女",null,null,null,null,null,null,null,null,null,null,null,null,null,null,null,"胃腸炎"]
[5,"水　　　痘","男",null,null,null,null,null,null,null,null,null,null,null,null,null,null,null,"水痘"]
[null,null,"女"]
[6,"手　足　口　病","男",null,null,null,null,null,null,null,null,null,null,null,null,null,null,null,"手足口病"]
[null,null,"女"]
[7,"伝染性紅斑","男",null,null,null,null,null,null,null,null,null,null,null,null,null,null,null,"伝染性"]
[null,null,"女",null,null,null,null,null,null,null,null,null,null,null,null,null,null,null,"紅斑"]
[8,"突発性発しん","男",null,null,null,null,null,null,null,null,null,null,null,null,null,null,null,"突発性"]
[null,null,"女",null,null,null,null,null,null,null,null,null,null,null,null,null,null,null,"発しん"]
[9,"ヘルパンギーナ","男",null,null,null,null,null,null,null,null,null,null,null,null,null,null,null,"ヘルパン"]
[null,null,"女",null,null,null,null,null,null,null,null,null,null,null,null,null,null,null,"ギーナ"]
[10,"流行性耳下腺炎","男",null,null,null,null,null,null,null,null,null,null,null,null,null,null,null,"流行性"]
[null,null,"女",null,null,null,null,null,null,null,null,null,null,null,null,null,null,null,"耳下腺炎"]
[null,"　* 感染性胃腸炎については、原因の如何に関わらず届出基準に合致する患者を診断し、または死体を検案した場合に届出を行うこと。"]

{"sheet":"6-2 インフル,コロナ","index":1,"n_rows":20,"n_cols":36,"rows_kept":20,"cut":false,"hidden":false,"merged":[[9,12,9,13],[7,1,11,1],[15,1,19,1],[17,12,17,13]]}
[null,"別記様式６-２","感染症発生動向調査（インフルエンザ/新型コロナ定点）　週報",null,null,null,null,null,null,null,null,null,null,null,null,null,{"$f":"設定!C3&\" \"&設定!E3","v":"出雲保健所 衛生指導課（ＦＡＸ ２１－７４２８）行き"},null,null,null,null,null,null,null,null,null,null,"週の設定"]
[]
[]
[null,"調 査 期 間",{"$f":"\" \"&DBCS(TEXT(AD9,\"gggge年 \"))&DBCS(TEXT(AD9,\"m月d日\")& \" ～ \"&TEXT(AF9,\"m月d日\"))","v":" 令和５年　５月８日　～　５月１４日"},null,null,null,null,null,null,2023,"年　 第",19," 週"]
[null,"医療機関名",{"$f":"\" \"&設定!D15","v":" 医療法人平静会仲田医院"}]
[]
[null,"疾患名","年齢","～5か月","～11か月","１歳","２","３","４","５","６","７","８","９","10\n～14","小計",null,null,null,null,null,null,null,null,null,null,"本年",{"$f":"J4","v":2023},"年",{"$f":"DATEVALUE(AB7&\"/1/1\")","v":44927},"年",{"$f":"WEEKDAY(AD7,2)","v":7},{"$f":"IF(AF7<5,AF7,AF7-7)","v":0},{"$f":"AD7-AG7","v":"2023-01-01"},"←前年の最終週の日曜日"]
[null,"インフルエンザ\n\n（鳥インフルエンザ\n及び新型インフルエンザ等感染症を除く）","男"]
[null,null,"女",null,null,null,null,null,null,null,null,null,null,null,null,null,null,null,null,null,null,null,null,null,null,null,"週",{"$f":"L4","v":19},"週",{"$f":"AH7+((AB9-1)*7)+1","v":"2023-05-08"},"～",{"$f":"AD9+6","v":"2023-05-14"},null,"最終週",{"$f":"INT((AH13-AH7)/7)","v":52},"週まで"]
[null,null,"年齢","15\n～19","20\n～29","30\n～39","40\n～49","50\n～59","60\n～69","70\n～79","80歳\n以上","小計","合計"]
[null,null,"男"]
[null,null,"女"]
[null,null,null,null,null,null,null,null,null,null,null,null,null,null,null,null,null,null,null,null,null,null,null,null,null,null,"翌年",{"$f":"AB7+1","v":2024},"年",{"$f":"DATEVALUE(AB13&\"/1/1\")","v":45292},"年",{"$f":"WEEKDAY(AD13,2)","v":1},{"$f":"IF(AF13<5,AF13,AF13-7)","v":1},{"$f":"AD13-AG13","v":"2023-12-31"},"←本年の最終週の日曜日"]
[]
[null,"疾患名","年齢","～5か月","～11か月","１歳","２","３","４","５","６","７","８","９","10\n～14","小計"]
[null,"新型コロナ\nウイルス感染症","男"]
[null,null,"女"]
[null,null,"年齢","15\n～19","20\n～29","30\n～39","40\n～49","50\n～59","60\n～69","70\n～79","80歳\n以上","小計","合計"]
[null,null,"男"]
[null,null,"女"]

{"sheet":"6-2(2)基幹（インフル入院）","index":2,"n_rows":28,"n_cols":36,"rows_kept":28,"cut":false,"hidden":false,"merged":[[22,11,22,12],[16,11,16,12],[17,11,17,12],[18,11,18,12],[19,11,19,12],[13,11,13,12],[14,11,14,12],[15,11,15,12],[20,11,20,12],[21,11,21,12],[8,11,8,12],[9,11,9,12],[10,11,10,12],[11,11,11,12],[12,11,12,12],[6,11,7,12],[6,1,7,1],[6,2,7,2],[6,4,7,4],[6,5,6,10],[6,3,7,3]]}
[null,"別記様式６－２（２）","感染症発生動向調査（基幹定点） 【週報】",null,null,null,null,null,null,null,null,null,{"$f":"設定!C3&\" \"&設定!E3","v":"出雲保健所 衛生指導課（ＦＡＸ ２１－７４２８）行き"},null,null,null,null,null,null,null,null,null,null,null,null,null,null,"週の設定"]
[null,null,"　（インフルエンザによる入院患者の報告）"]
[null,null,"インフルエンザによる入院患者がいない場合でも、０報告であげてください。"]
[null,"調 査 期 間",{"$f":"\" \"&DBCS(TEXT(AD9,\"gggge年 \"))&DBCS(TEXT(AD9,\"m月d日\")& \" ～ \"&TEXT(AF9,\"m月d日\"))","v":" 平成３０年　１月１日　～　１月７日"},null,null,null,null,null,null,2018,"年　 　　　第",1," 週"]
[null,"医療機関名",{"$f":"\" \"&設定!D16","v":" 島根県立中央病院"}]
[]
[null,"ＩＤ番号","性別","年齢","0歳は\n月齢","入院時の対応",null,null,null,null,null,"備考",null,null,null,null,null,null,null,null,null,null,null,null,null,null,"本年",{"$f":"J4","v":2018},"年",{"$f":"DATEVALUE(AB7&\"/1/1\")","v":43101},"年",{"$f":"WEEKDAY(AD7,2)","v":1},{"$f":"IF(AF7<5,AF7,AF7-7)","v":1},{"$f":"AD7-AG7","v":"2017-12-31"},"←前年の最終週の日曜日"]
[null,null,null,null,null,"ＩＣＵ入室","人工呼吸器\nの利用","頭部CT検査\n（予定含む）","頭部MRI検査\n（予定含む）","脳波検査\n（予定含む）","いずれにも\n該当せず"]
[1,null,"男 女",null,null,null,null,null,null,null,null,null,null,null,null,null,null,null,null,null,null,null,null,null,null,null,"週",{"$f":"L4","v":1},"週",{"$f":"AH7+((AB9-1)*7)+1","v":"2018-01-01"},"～",{"$f":"AD9+6","v":"2018-01-07"},null,"最終週",{"$f":"INT((AH13-AH7)/7)","v":52},"週まで"]
[2,null,"男 女"]
[3,null,"男 女"]
[4,null,"男 女"]
[5,null,"男 女",null,null,null,null,null,null,null,null,null,null,null,null,null,null,null,null,null,null,null,null,null,null,null,"翌年",{"$f":"AB7+1","v":2019},"年",{"$f":"DATEVALUE(AB13&\"/1/1\")","v":43466},"年",{"$f":"WEEKDAY(AD13,2)","v":2},{"$f":"IF(AF13<5,AF13,AF13-7)","v":2},{"$f":"AD13-AG13","v":"2018-12-30"},"←本年の最終週の日曜日"]
[6,null,"男 女"]
[7,null,"男 女"]
[8,null,"男 女"]
[9,null,"男 女"]
[10,null,"男 女"]
[11,null,"男 女"]
[12,null,"男 女"]
[13,null,"男 女"]
[14,null,"男 女"]
[15,null,"男 女"]
[]
[]
[null,"　＜記載上の留意＞"]
[null," ○インフルエンザに罹患し、入院した患者（院内感染を含む）を報告してください"]
[null," ○入院時の患者対応については、該当する項目欄の全てに○を記入してください"]

{"sheet":"6-2(3)基幹（コロナ入院）","index":3,"n_rows":30,"n_cols":36,"rows_kept":30,"cut":false,"hidden":false,"merged":[[13,11,13,12],[6,1,7,1],[6,2,7,2],[6,3,7,3],[6,4,7,4],[6,5,6,10],[6,11,7,12],[8,11,8,12],[9,11,9,12],[10,11,10,12],[11,11,11,12],[12,11,12,12],[20,11,20,12],[21,11,21,12],[22,11,22,12],[14,11,14,12],[15,11,15,12],[16,11,16,12],[17,11,17,12],[18,11,18,12],[19,11,19,12]]}
[null,"別記様式６－２（３）","感染症発生動向調査（基幹定点） 【週報】",null,null,null,null,null,null,null,null,null,{"$f":"設定!C3&\" \"&設定!E3","v":"出雲保健所 衛生指導課（ＦＡＸ ２１－７４２８）行き"},null,null,null,null,null,null,null,null,null,null,null,null,null,null,"週の設定"]
[null,null,"　（COVID-19による入院患者の報告）"]
[null,null,"COVID-19による入院患者がいない場合でも、０報告であげてください。"]
[null,"調 査 期 間",{"$f":"\" \"&DBCS(TEXT(AD9,\"gggge年 \"))&DBCS(TEXT(AD9,\"m月d日\")& \" ～ \"&TEXT(AF9,\"m月d日\"))","v":" 令和５年　１０月２日　～　１０月８日"},null,null,null,null,null,null,2023,"年　 　　　第",40," 週"]
[null,"医療機関名",{"$f":"\" \"&設定!D16","v":" 島根県立中央病院"}]
[]
[null,"ＩＤ番号","性別","年齢","0歳は\n月齢","入院時の対応",null,null,null,null,null,"備考",null,null,null,null,null,null,null,null,null,null,null,null,null,null,"本年",{"$f":"J4","v":2023},"年",{"$f":"DATEVALUE(AB7&\"/1/1\")","v":44927},"年",{"$f":"WEEKDAY(AD7,2)","v":7},{"$f":"IF(AF7<5,AF7,AF7-7)","v":0},{"$f":"AD7-AG7","v":"2023-01-01"},"←前年の最終週の日曜日"]
[null,null,null,null,null,"ＩＣＵ入室","人工呼吸器\nの利用","いずれにも\n該当せず"]
[1,null,"男 女",null,null,null,null,null,null,null,null,null,null,null,null,null,null,null,null,null,null,null,null,null,null,null,"週",{"$f":"L4","v":40},"週",{"$f":"AH7+((AB9-1)*7)+1","v":"2023-10-02"},"～",{"$f":"AD9+6","v":"2023-10-08"},null,"最終週",{"$f":"INT((AH13-AH7)/7)","v":52},"週まで"]
[2,null,"男 女"]
[3,null,"男 女"]
[4,null,"男 女"]
[5,null,"男 女",null,null,null,null,null,null,null,null,null,null,null,null,null,null,null,null,null,null,null,null,null,null,null,"翌年",{"$f":"AB7+1","v":2024},"年",{"$f":"DATEVALUE(AB13&\"/1/1\")","v":45292},"年",{"$f":"WEEKDAY(AD13,2)","v":1},{"$f":"IF(AF13<5,AF13,AF13-7)","v":1},{"$f":"AD13-AG13","v":"2023-12-31"},"←本年の最終週の日曜日"]
[6,null,"男 女"]
[7,null,"男 女"]
[8,null,"男 女"]
[9,null,"男 女"]
[10,null,"男 女"]
[11,null,"男 女"]
[12,null,"男 女"]
[13,null,"男 女"]
[14,null,"男 女"]
[15,null,"男 女"]
[]
[]
[null,"　＜記載上の留意＞"]
[null," ○COVID-19に罹患し、入院した患者（院内感染を含む）を報告してください"]
[null," ○入院時の患者対応については、該当する項目欄の全てに○を記入してください"]
[null," 〇ICU入室とは、「特定集中治療管理料」「救命救急入院料」を算定した場合に限る"]
[null," 〇人工呼吸器の利用とは、気管挿管による人工呼吸器の利用、またはECMOを使用した場合に限る"]

{"sheet":"6-3 眼科","index":4,"n_rows":17,"n_cols":36,"rows_kept":17,"cut":false,"hidden":false,"merged":[[15,1,16,1],[7,1,8,1],[13,1,14,1],[9,1,10,1],[12,11,12,12]]}
[null,"別記様式６-３","感染症発生動向調査（眼科定点）　週報",null,null,null,null,null,null,null,null,null,null,null,null,{"$f":"設定!C3&\" \"&設定!E3","v":"出雲保健所 衛生指導課（ＦＡＸ ２１－７４２８）行き"},null,null,null,null,null,null,null,null,null,null,"週の設定"]
[]
[]
[null,"調 査 期 間",{"$f":"\" \"&DBCS(TEXT(AD9,\"gggge年 \"))&DBCS(TEXT(AD9,\"m月d日\")& \" ～ \"&TEXT(AF9,\"m月d日\"))","v":" 平成３０年　１月１日　～　１月７日"},null,null,null,null,null,null,2018,"年　 第",1," 週"]
[null,"医療機関名",{"$f":"\" \"&設定!D17","v":" ますだ眼科クリニック"}]
[]
[null,"疾患名","年齢","～5か月","～11か月","１歳","２","３","４","５","６","７","８","９","10\n～14","小 計",null,null,null,null,null,null,null,null,null,null,"本年",{"$f":"J4","v":2018},"年",{"$f":"DATEVALUE(AB7&\"/1/1\")","v":43101},"年",{"$f":"WEEKDAY(AD7,2)","v":1},{"$f":"IF(AF7<5,AF7,AF7-7)","v":1},{"$f":"AD7-AG7","v":"2017-12-31"},"←前年の最終週の日曜日"]
[null,"急性出血性結膜炎","男"]
[null,null,"女",null,null,null,null,null,null,null,null,null,null,null,null,null,null,null,null,null,null,null,null,null,null,null,"週",{"$f":"L4","v":1},"週",{"$f":"AH7+((AB9-1)*7)+1","v":"2018-01-01"},"～",{"$f":"AD9+6","v":"2018-01-07"},null,"最終週",{"$f":"INT((AH12-AH7)/7)","v":52},"週まで"]
[null,"流行性角結膜炎","男"]
[null,null,"女"]
[null,null,null,null,null,null,null,null,null,null,null,null,null,null,null,null,null,null,null,null,null,null,null,null,null,null,"翌年",{"$f":"AB7+1","v":2019},"年",{"$f":"DATEVALUE(AB12&\"/1/1\")","v":43466},"年",{"$f":"WEEKDAY(AD12,2)","v":2},{"$f":"IF(AF12<5,AF12,AF12-7)","v":2},{"$f":"AD12-AG12","v":"2018-12-30"},"←本年の最終週の日曜日"]
[null,"疾患名","年齢","15\n～19","20\n～29","30\n～39","40\n～49","50\n～59","60\n～69","70歳\n以上","小 計","合　　計"]
[null,"急性出血性結膜炎","男"]
[null,null,"女"]
[null,"流行性角結膜炎","男"]
[null,null,"女"]

{"sheet":"6-4 STD","index":5,"n_rows":15,"n_cols":36,"rows_kept":15,"cut":false,"hidden":false,"merged":[[11,1,12,1],[13,1,14,1],[7,1,8,1],[9,1,10,1]]}
[null,"別記様式６-４","感染症発生動向調査（ＳＴＤ定点）　月報",null,null,null,null,null,null,null,null,null,null,null,null,null,null,null,null,null,{"$f":"設定!C3&\" \"&設定!E3","v":"出雲保健所 衛生指導課（ＦＡＸ ２１－７４２８）行き"},null,null,null,null,null,"月の設定"]
[]
[]
[null,"調 査 期 間",{"$f":"\" \"&DBCS(TEXT(AD9,\"gggge年 \"))&DBCS(TEXT(AD9,\"m月d日\")& \" ～ \"&TEXT(AF9,\"m月d日\"))","v":" 平成３０年　１月１日　～　１月３１日"},null,null,null,null,null,null,2018," 年",1," 月"]
[null,"医療機関名",{"$f":"\" \"&設定!D18","v":" 医療法人松陽台佐藤クリニック"}]
[null,null,null,null,null,null,null,null,null,null,null,null,null,null,null,null,null,null,null,null,null,null,null,null,null,null,null,null,null,{"$f":"AB7","v":2018},null,{"$f":"IF(AB9=12,AB7+1,AB7)","v":2018}]
[null,"疾患名","年齢","０歳","1～4","5～9","10\n～14","15\n～19","20\n～24","25\n～29","30\n～34","35\n～39","40\n～44","45\n～49","50\n～54","55\n～59","60\n～64","65\n～69","70歳\n以上","合計",null,null,null,null,null,null,"本年",{"$f":"J4","v":2018},"年",{"$f":"AB9","v":1},null,{"$f":"IF(AB9=12,1,AB9+1)","v":2}]
[null,"性器クラミジア\n感染症","男",null,null,null,null,null,null,null,null,null,null,null,null,null,null,null,null,null,"クラミジア"]
[null,null,"女",null,null,null,null,null,null,null,null,null,null,null,null,null,null,null,null,null,null,null,null,null,null,null,null,{"$f":"L4","v":1},"月",{"$f":"DATEVALUE(AD6&\"/\"&AD7&\"/1\")","v":"2018-01-01"},"～",{"$f":"DATEVALUE(AF6&\"/\"&AF7&\"/1\")-1","v":"2018-01-31"},"日まで",null,12,"月まで"]
[null,"性器ヘルペス\nウイルス感染症","男",null,null,null,null,null,null,null,null,null,null,null,null,null,null,null,null,null,"ヘルペス"]
[null,null,"女"]
[null,"尖圭\nコンジローマ","男",null,null,null,null,null,null,null,null,null,null,null,null,null,null,null,null,null,"尖圭\nコンジ"]
[null,null,"女",null,null,null,null,null,null,null,null,null,null,null,null,null,null,null,null,null,"ローマ"]
[null,"淋菌感染症","男",null,null,null,null,null,null,null,null,null,null,null,null,null,null,null,null,null,"淋菌"]
[null,null,"女",null,null,null,null,null,null,null,null,null,null,null,null,null,null,null,null,null,"感染症"]

{"sheet":"6-5 基幹(週)","index":6,"n_rows":33,"n_cols":36,"rows_kept":33,"cut":false,"hidden":false,"merged":[[12,16,12,18],[13,16,14,18],[7,16,8,18],[31,1,31,17],[6,1,7,1],[6,2,7,2],[6,3,7,3],[6,4,7,4],[7,9,7,10],[6,5,7,6],[6,7,7,8],[6,9,6,12],[7,11,7,12],[8,7,8,8],[8,11,8,12],[8,9,8,10],[14,5,14,6],[15,5,15,6],[16,5,16,6],[17,5,17,6],[8,5,8,6],[11,5,11,6],[12,5,12,6],[13,5,13,6],[9,5,9,6],[10,5,10,6],[14,7,14,8],[15,7,15,8],[14,9,14,10],[15,9,15,10],[9,7,9,8],[10,7,10,8],[11,7,11,8],[12,7,12,8],[13,9,13,10],[9,9,9,10],[10,9,10,10],[11,9,11,10],[12,9,12,10],[13,7,13,8],[17,11,17,12],[16,7,16,8],[17,7,17,8],[17,9,17,10],[16,9,16,10],[13,11,13,12],[16,11,16,12],[14,11,14,12],[15,11,15,12],[9,11,9,12],[10,11,10,12],[11,11,11,12],[12,11,12,12],[19,5,19,6],[19,7,19,8],[19,9,19,10],[19,11,19,12],[18,5,18,6],[18,7,18,8],[18,9,18,10],[18,11,18,12],[9,16,10,18],[25,1,25,17],[27,1,27,17],[29,1,29,17],[22,5,22,6],[22,7,22,8],[22,9,22,10],[22,11,22,12],[21,7,21,8],[21,9,21,10],[21,11,21,12],[20,5,20,6],[20,7,20,8],[20,9,20,10],[20,11,20,12],[21,5,21,6]]}
[null,"別記様式６-５","感染症発生動向調査（基幹定点）　【週報】",null,null,null,null,null,null,null,null,null,null,null,null,null,null,{"$f":"設定!C3&\" \"&設定!E3","v":"出雲保健所 衛生指導課（ＦＡＸ ２１－７４２８）行き"},null,null,null,null,null,null,null,null,"週の設定"]
[]
[]
[null,"調 査 期 間",{"$f":"\" \"&DBCS(TEXT(AD9,\"gggge年 \"))&DBCS(TEXT(AD9,\"m月d日\")& \" ～ \"&TEXT(AF9,\"m月d日\"))","v":" 平成３０年　１月１日　～　１月７日"},null,null,null,null,null,null,2018,"年　 第",1," 週"]
[null,"医療機関名",{"$f":"\" \"&設定!D16","v":" 島根県立中央病院"}]
[]
[null,"ID番号","性別","年齢","0歳は\n月齢","疾病名*",null,"病原体名称\n（検査結果）",null,"病原体検査",null,null,null,null," * 疾患名",null,null,null,null,null,null,null,null,null,null,null,"本年",{"$f":"J4","v":2018},"年",{"$f":"DATEVALUE(AB7&\"/1/1\")","v":43101},"年",{"$f":"WEEKDAY(AD7,2)","v":1},{"$f":"IF(AF7<5,AF7,AF7-7)","v":1},{"$f":"AD7-AG7","v":"2017-12-31"},"←前年の最終週の日曜日"]
[null,null,null,null,null,null,null,null,null,"左記の結果を得た\n病原体検査方法**",null,"検体名",null,null,null,"１：","細菌性髄膜炎\n （髄膜炎菌、肺炎球菌、インフルエン\n　ザ菌を原因として同定された場合\n　を除く）"]
[1,null,"男 女",null,null,"１　２　３　４　５",null,null,null,"１ ２ ３ ４ ５ ６ ７",null,null,null,null,null,null,null,null,null,null,null,null,null,null,null,null,"週",{"$f":"L4","v":1},"週",{"$f":"AH7+((AB9-1)*7)+1","v":"2018-01-01"},"～",{"$f":"AD9+6","v":"2018-01-07"},null,"最終週",{"$f":"INT((AH12-AH7)/7)","v":52},"週まで"]
[2,null,"男 女",null,null,"１　２　３　４　５",null,null,null,"１ ２ ３ ４ ５ ６ ７",null,null,null,null,null,"２：","無菌性髄膜炎 \n （真菌、結核菌、マイコプラズマ、\n　リケッチア、クラミジア、原虫を含む）"]
[3,null,"男 女",null,null,"１　２　３　４　５",null,null,null,"１ ２ ３ ４ ５ ６ ７"]
[4,null,"男 女",null,null,"１　２　３　４　５",null,null,null,"１ ２ ３ ４ ５ ６ ７",null,null,null,null,null,"３：","マイコプラズマ肺炎",null,null,null,null,null,null,null,null,null,"翌年",{"$f":"AB7+1","v":2019},"年",{"$f":"DATEVALUE(AB12&\"/1/1\")","v":43466},"年",{"$f":"WEEKDAY(AD12,2)","v":2},{"$f":"IF(AF12<5,AF12,AF12-7)","v":2},{"$f":"AD12-AG12","v":"2018-12-30"},"←本年の最終週の日曜日"]
[5,null,"男 女",null,null,"１　２　３　４　５",null,null,null,"１ ２ ３ ４ ５ ６ ７",null,null,null,null,null,"４：","クラミジア肺炎\n （全数届出疾患のオウム病を除く）"]
[6,null,"男 女",null,null,"１　２　３　４　５",null,null,null,"１ ２ ３ ４ ５ ６ ７",null,null,null,null,null,"５：","感染性胃腸炎\n （病原体がロタウイルスであるものに\n　限る）"]
[7,null,"男 女",null,null,"１　２　３　４　５",null,null,null,"１ ２ ３ ４ ５ ６ ７"]
[8,null,"男 女",null,null,"１　２　３　４　５",null,null,null,"１ ２ ３ ４ ５ ６ ７",null,null,null,null,"** 病原体検査方法"]
[9,null,"男 女",null,null,"１　２　３　４　５",null,null,null,"１ ２ ３ ４ ５ ６ ７",null,null,null,null,null,"１：","分離・培養"]
[10,null,"男 女",null,null,"１　２　３　４　５",null,null,null,"１ ２ ３ ４ ５ ６ ７",null,null,null,null,null,"２：","抗原検出"]
[11,null,"男 女",null,null,"１　２　３　４　５",null,null,null,"１ ２ ３ ４ ５ ６ ７",null,null,null,null,null,"３：","核酸(PCR・LAMP等)"]
[12,null,"男 女",null,null,"１　２　３　４　５",null,null,null,"１ ２ ３ ４ ５ ６ ７",null,null,null,null,null,"４：","塗抹検鏡"]
[13,null,"男 女",null,null,"１　２　３　４　５",null,null,null,"１ ２ ３ ４ ５ ６ ７",null,null,null,null,null,"５：","電顕"]
[14,null,"男 女",null,null,"１　２　３　４　５",null,null,null,"１ ２ ３ ４ ５ ６ ７",null,null,null,null,null,"６：","抗体検出"]
[15,null,"男 女",null,null,"１　２　３　４　５",null,null,null,"１ ２ ３ ４ ５ ６ ７",null,null,null,null,null,"７：","その他"]
[]
[null,"＜記載上の注意＞"]
["・","細菌性髄膜炎および無菌性髄膜炎：病原体が判明している場合は、その病原体名(複数検出された場合は、主要なもの一種のみ記載)、その結果を得た病原体検査方法（複数の"]
[null,"場合は、最も根拠となった方法一つを選択）及びその検体名を記載。病原体が判明していない場合は、病原体名称欄に\"検出せず\"と記載してください(病原体検査欄の記載は不要)。"]
["・","マイコプラズマ肺炎：病原体検査診断が必須。病原体名称欄に M. pneumoniae と記載の上、病原体検査方法（1、2、3、6、7 のいずれか。複数の場合は主要な一つを選択）及びその検"]
[null,"体名を記載してください。"]
["・","クラミジア肺炎：病原体検査診断が必須。病原体名称欄に C. pneumoniae 、C. trachomatis を記載の上、病原体検査方法（1、2、3、6、7 のいずれか。複数の場合は主要な一つを"]
[null,"選択）及びその検体名を記載してください。"]
["・","感染性胃腸炎（病原体がロタウイルスであるものに限る。）：病原体検査診断が必須。病原体名称欄にロタウイルスと記載の上、病原体検査方法（１、２、３、７のいずれか。複数の場合"]
[null,"は主要な一つを選択）及びその検体名を記載してください。　※基幹定点として指定されている医療機関が小児科定点として指定されている場合、感染性胃腸炎の届出も行うこと。"]

{"sheet":"6-6 基幹(月)","index":7,"n_rows":23,"n_cols":36,"rows_kept":23,"cut":false,"hidden":false,"merged":[[21,11,22,16],[20,11,20,12],[12,11,12,12],[14,11,14,12],[15,11,15,12],[16,11,16,12],[17,11,17,12],[18,11,18,12],[21,20,21,21],[6,5,7,6],[6,7,7,8],[8,5,8,6],[8,7,8,8],[9,5,9,6],[9,7,9,8],[10,5,10,6],[5,10,6,11],[13,7,13,8],[18,5,18,6],[18,7,18,8],[10,7,10,8],[13,11,13,12],[10,11,10,16],[21,10,22,10],[6,1,7,1],[6,2,7,2],[6,3,7,3],[6,4,7,4],[19,7,19,8],[12,5,12,6],[12,7,12,8],[13,5,13,6],[16,5,16,6],[16,7,16,8],[22,5,22,6],[11,5,11,6],[11,7,11,8],[15,5,15,6],[15,7,15,8],[14,5,14,6],[14,7,14,8],[17,5,17,6],[17,7,17,8],[22,7,22,8],[21,5,21,6],[21,7,21,8],[20,5,20,6],[20,7,20,8],[19,5,19,6]]}
[null,"別記様式６-６","感染症発生動向調査（基幹定点）　月報",null,null,null,null,null,null,null,null,null,null,null,null,null,null,{"$f":"設定!C3&\" \"&設定!E3","v":"出雲保健所 衛生指導課（ＦＡＸ ２１－７４２８）行き"},null,null,null,null,null,null,null,null,"月の設定"]
[]
[]
[null,"調 査 期 間",{"$f":"\" \"&DBCS(TEXT(AD9,\"gggge年 \"))&DBCS(TEXT(AD9,\"m月d日\")& \" ～ \"&TEXT(AF9,\"m月d日\"))","v":" 平成３０年　１月１日　～　１月３１日"},null,null,null,null,null,null,2018," 年",1," 月"]
[null,"医療機関名",{"$f":"\" \"&設定!D16","v":" 島根県立中央病院"}]
[null,null,null,null,null,null,null,null,null,null,"※1 疾病名",null,null,null,null,null,null,null,null,null,null,null,null,null,null,null,null,null,null,{"$f":"AB7","v":2018},null,{"$f":"IF(AB9=12,AB7+1,AB7)","v":2018}]
[null,"ID番号","性別","年齢","0歳は\n月齢","疾 病 名※1",null,"検体採取部位※2",null,null,null,null,null,null,null,null,null,null,null,null,null,null,null,null,null,null,"本年",{"$f":"J4","v":2018},"年",{"$f":"AB9","v":1},null,{"$f":"IF(AB9=12,1,AB9+1)","v":2}]
[null,null,null,null,null,null,null,null,null,null,"１：","メチシリン耐性黄色ブドウ球菌感染症"]
[1,null,"男　女",null,null,"１　２　３　",null,null,null,null,"２：","ペニシリン耐性肺炎球菌感染症",null,null,null,null,null,null,null,null,null,null,null,null,null,null,null,{"$f":"L4","v":1},"月",{"$f":"DATEVALUE(AD6&\"/\"&AD7&\"/1\")","v":"2018-01-01"},"～",{"$f":"DATEVALUE(AF6&\"/\"&AF7&\"/1\")-1","v":"2018-01-31"},"日まで",null,12,"月まで"]
[2,null,"男　女",null,null,"１　２　３　",null,null,null,null,"３：","薬剤耐性緑膿菌感染症"]
[3,null,"男　女",null,null,"１　２　３　",null,null,null,null,"※","薬剤耐性アシネトバクター感染症は、平成26年9月19日から5類の全数把握疾患となりました。"]
[4,null,"男　女",null,null,"１　２　３　",null,null,null,null,"※2 検体採取部位"]
[5,null,"男　女",null,null,"１　２　３　",null,null,null,null,"１：\n２：","喀痰\n気管洗浄液"]
[6,null,"男　女",null,null,"１　２　３　",null,null,null,null,"３：\n４：","血液\n髄液"]
[7,null,"男　女",null,null,"１　２　３　",null,null,null,null,"５：\n６：","胸水\n腹水"]
[8,null,"男　女",null,null,"１　２　３　",null,null,null,null,"７：\n８：","創部\n尿"]
[9,null,"男　女",null,null,"１　２　３　",null,null,null,null,"９：\n10：","便\n留置カテーテル（血液）"]
[10,null,"男　女",null,null,"１　２　３　",null,null,null,null,"11：\n12：","留置カテーテル（気管）\n留置カテーテル（尿路）"]
[11,null,"男　女",null,null,"１　２　３　",null,null,null,null,"13：\n14：","留置カテーテル（体腔内）\n留置カテーテル（その他）"]
[12,null,"男　女",null,null,"１　２　３　",null,null,null,null,"15：\n","耳漏液\n"]
[13,null,"男　女",null,null,"１　２　３　",null,null,null,null,null,"その他（部位を記載してください）",null,"\n"]
[14,null,"男　女",null,null,"１　２　３　",null,null,null,null,"※3　 \n","複数部位から検出された場合は、最も重要と\n考えられる１か所のみを記載してください。"]
[15,null,"男　女",null,null,"１　２　３　"]

{"sheet":"設定","index":8,"n_rows":62,"n_cols":26,"rows_kept":62,"cut":false,"hidden":false,"merged":[]}
[null,"保健所の設定",null,"（グループ名称、ＦＡＸ番号は適時修正のこと）",null,null,null,null,null,"処理対象の保健所の定点",null,null,"保健所毎の定点表リスト"]
[null,"Index","保健所名",null,"FAX番号等",null,null,null,null,{"$f":"B3*2-1","v":5},null," ",null,"松江",null,"雲南",null,"出雲",null,"県央",null,"浜田",null,"益田",null,"隠岐"]
[null,3,{"$f":"INDEX(C4:C10,$B$3,1)","v":"出雲保健所"},null,{"$f":"INDEX(E4:E10,$B$3,1)","v":"衛生指導課（ＦＡＸ ２１－７４２８）行き"},null,null,null,1,{"$f":"INDEX($N$3:$AA$62,$I3,J$2)","v":"医療法人社団どれみクリニック基常小児科"},null,1,"小児科","医療法人ひよこクリニック浅野小児科医院",null,"雲南市立病院",null,"医療法人社団どれみクリニック基常小児科",null,"大田市立病院",null,"小池医院",null,"中島こどもクリニック",null,"高梨医院"]
[1,"松江","松江保健所",null,"衛生指導課（ＦＡＸ ３１－６６９４）行き",null,null,null,2,"医療法人わたなべこどもレディースクリニック",null,2,null,"医療法人たくわ小児科クリニック",null,"よこお小児科",null,"医療法人わたなべこどもレディースクリニック",null,"公立邑智病院",null,"斎藤医院",null,"津和野共存病院",null," "]
[2,"雲南","雲南保健所",null,"衛生指導課（ＦＡＸ ４２－９６５４）行き",null,null,null,3,"医療法人及川医院",null,3,null,"くれこどもクリニック",null," ",null,"医療法人及川医院",null," ",null,"すみれ小児科",null,"益田赤十字病院",null," "]
[3,"出雲","出雲保健所",null,"衛生指導課（ＦＡＸ ２１－７４２８）行き",null,null,null,4,"島根県立中央病院",null,4,null,"医療法人ぽよぽよクリニック",null," ",null,"島根県立中央病院",null," ",null,"渡利小児科内科医院",null," ",null," "]
[4,"県央","県央保健所",null,"衛生指導課（ＦＡＸ ８４－９８１９）行き",null,null,null,5,"島根大学医学部附属病院",null,5,null,"安来市立病院",null," ",null,"島根大学医学部附属病院",null," ",null," ",null," ",null," "]
[5,"浜田","浜田保健所",null,"衛生指導課（ＦＡＸ ２９－５５６２）行き",null,null,null,6," ",null,6,null,"松江赤十字病院",null," ",null," ",null," ",null," ",null," ",null," "]
[6,"益田","益田保健所",null,"衛生指導課（ＦＡＸ ３１－９５６８）行き",null,null,null,7," ",null,7,null,"松江市立病院",null," ",null," ",null," ",null," ",null," ",null," "]
[7,"隠岐","隠岐保健所",null,"環境衛生課（ＦＡＸ ２－９７１６）行き",null,null,null,8,{"$f":"INDEX($N$3:$AA$62,$I10,J$2)","v":" "},null,8,null," ",null," ",null," ",null," ",null," ",null," ",null," "]
[null,null,null,null,null,null,null,null,9," ",null,9,null," ",null," ",null," ",null," ",null," ",null," ",null," "]
[null,null,null,null,null,null,null,null,10," ",null,10,null," ",null," ",null," ",null," ",null," ",null," ",null," "]
[null,"定点","n","定点名",null,null,null,null,11," ",null,11,null," ",null," ",null," ",null," ",null," ",null," ",null," "]
[null,"小児科",1,{"$f":"INDEX(J3:J17,$C$14,1)","v":"医療法人社団どれみクリニック基常小児科"},null,null,null,null,12," ",null,12,null," ",null," ",null," ",null," ",null," ",null," ",null," "]
[null,"インフル",8,{"$f":"INDEX(J18:J32,$C$15,1)","v":"医療法人平静会仲田医院"},null,null,null,null,13," ",null,13,null," ",null," ",null," ",null," ",null," ",null," ",null," "]
[null,"基幹",1,{"$f":"INDEX(J33:J42,$C$16,1)","v":"島根県立中央病院"},null,null,null,null,14," ",null,14,null," ",null," ",null," ",null," ",null," ",null," ",null," "]
[null,"眼科",1,{"$f":"INDEX(J43:J52,$C$17,1)","v":"ますだ眼科クリニック"},null,null,null,null,15," ",null,15,null," ",null," ",null," ",null," ",null," ",null," ",null," "]
[null,"ＳＴＤ",1,{"$f":"INDEX(J53:J62,$C$18,1)","v":"医療法人松陽台佐藤クリニック"},null,null,null,null,16,"医療法人社団どれみクリニック基常小児科",null,1,"インフル","医療法人ひよこクリニック浅野小児科医院",null,"雲南市立病院　（小児科）",null,"医療法人社団どれみクリニック基常小児科",null,"大田市立病院",null,"小池医院",null,"中島こどもクリニック",null,"高梨医院"]
[null,null,null,null,null,null,null,null,17,"医療法人わたなべこどもレディースクリニック",null,2,null,"医療法人たくわ小児科クリニック",null,"雲南市立病院　（内科）",null,"医療法人わたなべこどもレディースクリニック",null,"公立邑智病院",null,"斎藤医院",null,"津和野共存病院（内科）",null,"隠岐広域連合立隠岐島前病院"]
[null,null,null,null,null,null,null,null,18,"医療法人及川医院",null,3,null,"くれこどもクリニック",null,"よこお小児科",null,"医療法人及川医院",null,"渡辺医院",null,"すみれ小児科",null,"益田赤十字病院（小児科）",null," "]
[null,"2011(H23)/4/1 から定点変更",null,null,null,null,null,null,19,"島根県立中央病院",null,4,null,"医療法人ぽよぽよクリニック",null," ",null,"島根県立中央病院",null," ",null,"渡利小児科内科医院",null,"六日市病院（内科）",null," "]
[null,"2012(H24)/4/1 から定点変更",null,null,null,null,null,null,20,"島根大学医学部附属病院",null,5,null,"安来市立病院",null," ",null,"島根大学医学部附属病院",null," ",null,"医療法人社団能美医院",null,"松本医院",null," "]
[null,"2012(H24)/11/19 から定点変更",null,null,null,null,null,null,21,"医療法人社団堀江内科呼吸器科医院",null,6,null,"松江赤十字病院　（小児科）",null," ",null,"医療法人社団堀江内科呼吸器科医院",null," ",null,"浜田医療センター",null," ",null," "]
[null,"2015(H27)/11/30 から定点名称一部修正",null,null,null,null,null,null,22,"医療法人伊藤医院",null,7,null,"松江赤十字病院　（内科）",null," ",null,"医療法人伊藤医院",null," ",null," ",null," ",null," "]
[null,"2018(H30)/10/1 から定点変更",null,null,null,null,null,null,23,"医療法人平静会仲田医院",null,8,null,"松江市立病院　（小児科）",null," ",null,"医療法人平静会仲田医院",null," ",null," ",null," ",null," "]
[null,"2023(R05)/5/8 からCOVID-19追加",null,null,null,null,null,null,24,"医療法人永樹会吉岡医院",null,9,null,"松江市立病院　（内科）",null," ",null,"医療法人永樹会吉岡医院",null," ",null," ",null," ",null," "]
[null,null,null,null,null,null,null,null,25," ",null,10,null,"医療法人湯原内科医院",null," ",null," ",null," ",null,null,null," ",null," "]
[null,null,null,null,null,null,null,null,26," ",null,11,null,"医療法人おがわ耳鼻咽喉科",null," ",null," ",null," ",null,null,null," ",null," "]
[null,null,null,null,null,null,null,null,27," ",null,12,null," ",null," ",null," ",null," ",null,null,null," ",null," "]
[null,null,null,null,null,null,null,null,28," ",null,13,null," ",null," ",null," ",null," ",null,null,null," ",null," "]
[null,null,null,null,null,null,null,null,29," ",null,14,null," ",null," ",null," ",null," ",null,null,null," ",null," "]
[null,null,null,null,null,null,null,null,30," ",null,15,null," ",null," ",null," ",null," ",null,null,null," ",null," "]
[null,null,null,null,null,null,null,null,31,"島根県立中央病院",null,1,"基幹","松江赤十字病院",null,"雲南市立病院",null,"島根県立中央病院",null,"大田市立病院",null,"浜田医療センター",null,"益田赤十字病院",null,"隠岐広域連合立隠岐病院"]
[null,null,null,null,null,null,null,null,32,"島根大学医学部附属病院",null,2,null," ",null," ",null,"島根大学医学部附属病院",null," ",null," ",null," ",null," "]
[null,null,null,null,null,null,null,null,33," ",null,3,null," ",null," ",null," ",null," ",null," ",null," ",null," "]
[null,null,null,null,null,null,null,null,34," ",null,4,null," ",null," ",null," ",null," ",null," ",null," ",null," "]
[null,null,null,null,null,null,null,null,35," ",null,5,null," ",null," ",null," ",null," ",null," ",null," ",null," "]
[null,null,null,null,null,null,null,null,36," ",null,6,null," ",null," ",null," ",null," ",null," ",null," ",null," "]
[null,null,null,null,null,null,null,null,37," ",null,7,null," ",null," ",null," ",null," ",null," ",null," ",null," "]
[null,null,null,null,null,null,null,null,38," ",null,8,null," ",null," ",null," ",null," ",null," ",null," ",null," "]
[null,null,null,null,null,null,null,null,39," ",null,9,null," ",null," ",null," ",null," ",null," ",null," ",null," "]
[null,null,null,null,null,null,null,null,40,{"$f":"INDEX($N$3:$AA$62,$I42,J$2)","v":" "},null,10,null," ",null," ",null," ",null," ",null," ",null," ",null," "]
[null,null,null,null,null,null,null,null,41,"ますだ眼科クリニック",null,1,"眼科","古瀬眼科医院",null," ",null,"ますだ眼科クリニック",null," ",null,"おさだ眼科クリニック",null," ",null," "]
[null,null,null,null,null,null,null,null,42," ",null,2,null," ",null," ",null," ",null," ",null," ",null," ",null," "]
[null,null,null,null,null,null,null,null,43," ",null,3,null," ",null," ",null," ",null," ",null," ",null," ",null," "]
[null,null,null,null,null,null,null,null,44," ",null,4,null," ",null," ",null," ",null," ",null," ",null," ",null," "]
[null,null,null,null,null,null,null,null,45," ",null,5,null," ",null," ",null," ",null," ",null," ",null," ",null," "]
[null,null,null,null,null,null,null,null,46," ",null,6,null," ",null," ",null," ",null," ",null," ",null," ",null," "]
[null,null,null,null,null,null,null,null,47," ",null,7,null," ",null," ",null," ",null," ",null," ",null," ",null," "]
[null,null,null,null,null,null,null,null,48," ",null,8,null," ",null," ",null," ",null," ",null," ",null," ",null," "]
[null,null,null,null,null,null,null,null,49," ",null,9,null," ",null," ",null," ",null," ",null," ",null," ",null," "]
[null,null,null,null,null,null,null,null,50," ",null,10,null," ",null," ",null," ",null," ",null," ",null," ",null," "]
[null,null,null,null,null,null,null,null,51,"医療法人松陽台佐藤クリニック",null,1,"STD","医療法人嶋本医院",null," ",null,"医療法人松陽台佐藤クリニック",null," ",null,"あさひまちクリニック",null,"益田赤十字病院",null," "]
[null,null,null,null,null,null,null,null,52,"医療法人姫野クリニック",null,2,null,"医療法人正誼堂森本産婦人科医院",null," ",null,"医療法人姫野クリニック",null," ",null," ",null," ",null," "]
[null,null,null,null,null,null,null,null,53," ",null,3,null," ",null," ",null," ",null," ",null," ",null," ",null," "]
[null,null,null,null,null,null,null,null,54," ",null,4,null," ",null," ",null," ",null," ",null," ",null," ",null," "]
[null,null,null,null,null,null,null,null,55," ",null,5,null," ",null," ",null," ",null," ",null," ",null," ",null," "]
[null,null,null,null,null,null,null,null,56," ",null,6,null," ",null," ",null," ",null," ",null," ",null," ",null," "]
[null,null,null,null,null,null,null,null,57," ",null,7,null," ",null," ",null," ",null," ",null," ",null," ",null," "]
[null,null,null,null,null,null,null,null,58," ",null,8,null," ",null," ",null," ",null," ",null," ",null," ",null," "]
[null,null,null,null,null,null,null,null,59," ",null,9,null," ",null," ",null," ",null," ",null," ",null," ",null," "]
[null,null,null,null,null,null,null,null,60," ",null,10,null," ",null," ",null," ",null," ",null," ",null," ",null," "]

{"sheet":"使用説明","index":9,"n_rows":52,"n_cols":11,"rows_kept":52,"cut":false,"hidden":false,"merged":[]}
[]
[null,null,"調査票印刷の使用説明",null,null,null,null,null,null,"v3.1","2012/11/27"]
[]
[null,"１．保健所の選択"]
[null,"*","プルダウンメニューから、保健所名を選択してください。"]
[null,"*","保健所名を選択すると、FAX送信先の標記が変わり、定点一覧も変わります。"]
[null,"*","保健所名は、１つの調査票で変更すると、全ての調査票も切り替わります。"]
[]
[null,"２．印刷する定点の選択"]
[null,"*","印刷する対象の定点をプルダウンメニューから選択してください。"]
[null,"*","定点を選択すると、定点名の標記が変わります。"]
[]
[null,"３．印刷する「年」の設定"]
[null,"*","西暦年の欄に印刷する年を入力してください。"]
[]
[null,"４．印刷する「週」の設定"]
[null,"*","週の欄に週番号を入力すると、対応する期間の年月日が変わります。"]
[null,"*","マクロで連続印刷をするときは、週の設定は自動設定されます。"]
[]
[null,"５．印刷する"]
[null,"*","現在の週のみ１枚印刷するときは通常のように、Excelの印刷メニューから印刷してください。"]
[]
[null,"*","連続して週を指定して印刷したいときは、[連続印刷]ボタンをクリックします。"]
[null,null,"・","印刷開始のダイアログが表示されます。"]
[null,null,"・","印刷する週の範囲を設定してください。"]
[null,null,"・","[印刷開始]ボタンをクリックすると印刷を開始します。"]
[null,null,"・","印刷を途中でストップしたいときは、[キャンセル]ボタンをクリックします。"]
[]
[]
[null,"※補足事項"]
[null,"*","ＦＡＸ番号等を変更するときは、[設定]シートに各保健所のＦＡＸ番号設定一覧があります"]
[null,null,"ので、この表を修正してください。"]
[]
[]
[]
[]
[]
[]
[]
[null,null,null,"V1.0","2005-09-10","初版"]
[null,null,null,"v1.2","2005-12-01","動作不良修正"]
[null,null,null,"v1.3","2006-01-12","小児科のミス修正"]
[null,null,null,"v1.4","2006-02-02","ＳＴＤの年齢修正"]
[null,null,null,"v2.0","2006-05-02","診断基準、報告様式変更に伴う変更"]
[null,null,null,"v2.1","2007-12-03","麻しん・風しんを除外（暫定）"]
[null,null,null,"v2.2","2011-02-16","アシネトバクター追加"]
[null,null,null,"v3.0","2011-08-13","インフルエンザ入院追加"]
[null,null,null,"v3.1","2012-11-27","Excel2010用にxlsm保存"]
[null,null,null,null,"2014/5/12　基幹定点（週報）のマイコプラズマ肺炎の検査方法の変更に対応"]
[null,null,null,null,"2014/9/19　基幹定点（月報）の薬剤耐性アシネトバクター感染症が5類の全数把握疾患となり、調査票を一部変更[5RUIYOUSIKI2014.xlm]"]
[null,null,null,null,"2015/11/30 別記様式の各番号を修正(7→6)、別記様式6-5 基幹定点(週報)及び別記様式6-6 基幹定点(月報)の調査票の表記を一部修正[5ruiyousiki2015.xlsm]"]
[null,null,null,"v3.2","2017-12-22","小児科定点疾患から百日咳を削除（5類全数へ移動）"]